[Event "Titled Tuesday Blitz August 22 Late 2023"]
[White "OptimusPrimeBR"]
[Black "Polaczek, Richard"]
[BlackFideId "200026"]
[WhiteElo "2035"]
[BlackElo "2388"]
[Result "0-1"]
[Round "5"]
[TimeControl "180+1"]
[Date "2023.08.22"]
[WhiteClock "0:00:08"]
[BlackClock "0:00:20"]
[Board "176"]

1. e4 {[%clk 0:03:00]}  Nf6 {[%clk 0:02:59]} 2. Nc3 {[%clk 0:03:00]}  d5 {[%clk 0:02:59]} 3. exd5 {[%clk 0:02:59]}  Nxd5 {[%clk 0:02:58]} 4. Nf3 {[%clk 0:02:59]}  Nxc3 {[%clk 0:02:56]} 5. bxc3 {[%clk 0:02:59]}  g6 {[%clk 0:02:57]} 6. Bc4 {[%clk 0:02:59]}  Bg7 {[%clk 0:02:56]} 7. O-O {[%clk 0:02:59]}  O-O {[%clk 0:02:56]} 8. d4 {[%clk 0:02:57]}  c5 {[%clk 0:02:54]} 9. Be3 {[%clk 0:02:57]}  Qc7 {[%clk 0:02:51]} 10. Bd3 {[%clk 0:02:42]}  Nd7 {[%clk 0:02:47]} 11. Qd2 {[%clk 0:02:37]}  b6 {[%clk 0:02:46]} 12. Bh6 {[%clk 0:02:34]}  Bb7 {[%clk 0:02:43]} 13. Bxg7 {[%clk 0:02:34]}  Kxg7 {[%clk 0:02:43]} 14. Qe3 {[%clk 0:02:28]}  Rfe8 {[%clk 0:02:28]} 15. Rfe1 {[%clk 0:02:23]}  e6 {[%clk 0:02:26]} 16. h4 {[%clk 0:01:58]}  Nf6 {[%clk 0:02:24]} 17. Ne5 {[%clk 0:01:53]}  Rad8 {[%clk 0:02:11]} 18. g4 {[%clk 0:01:50]}  Nd7 {[%clk 0:02:00]} 19. h5 {[%clk 0:01:40]}  Nxe5 {[%clk 0:01:58]} 20. h6+ {[%clk 0:01:37]}  Kg8 {[%clk 0:01:57]} 21. dxe5 {[%clk 0:01:36]}  Qc6 {[%clk 0:01:50]} 22. Be4 {[%clk 0:01:35]}  Qxe4 {[%clk 0:01:49]} 23. Qxe4 {[%clk 0:01:35]}  Bxe4 {[%clk 0:01:49]} 24. Rxe4 {[%clk 0:01:35]}  Rd2 {[%clk 0:01:49]} 25. Ra4 {[%clk 0:01:27]}  Rxc2 {[%clk 0:01:27]} 26. Rxa7 {[%clk 0:01:23]}  Rxc3 {[%clk 0:01:27]} 27. Rb1 {[%clk 0:01:12]}  Rc4 {[%clk 0:01:20]} 28. Rxb6 {[%clk 0:01:07]}  Rxg4+ {[%clk 0:01:19]} 29. Kf1 {[%clk 0:01:07]}  Rh4 {[%clk 0:01:15]} 30. Rc6 {[%clk 0:01:05]}  Rxh6 {[%clk 0:01:12]} 31. Rxc5 {[%clk 0:01:05]}  Rh5 {[%clk 0:01:08]} 32. a4 {[%clk 0:01:05]}  Rd8 {[%clk 0:01:04]} 33. a5 {[%clk 0:01:03]}  Rf5 {[%clk 0:01:03]} 34. Ke2 {[%clk 0:01:01]}  Rd4 {[%clk 0:01:00]} 35. f3 {[%clk 0:00:59]}  Ra4 {[%clk 0:00:58]} 36. a6 {[%clk 0:00:59]}  g5 {[%clk 0:00:56]} 37. Ra8+ {[%clk 0:00:58]}  Kg7 {[%clk 0:00:56]} 38. a7 {[%clk 0:00:57]}  h5 {[%clk 0:00:42]} 39. Rc7 {[%clk 0:00:56]}  Rxe5+ {[%clk 0:00:36]} 40. Kd3 {[%clk 0:00:52]}  Rea5 {[%clk 0:00:37]} 41. Rcc8 {[%clk 0:00:40]}  Rxa7 {[%clk 0:00:35]} 42. Rg8+ {[%clk 0:00:37]}  Kf6 {[%clk 0:00:35]} 43. Raf8 {[%clk 0:00:36]}  Ra3+ {[%clk 0:00:34]} 44. Ke2 {[%clk 0:00:35]}  h4 {[%clk 0:00:33]} 45. Rh8 {[%clk 0:00:34]}  Rb7 {[%clk 0:00:32]} 46. Rd8 {[%clk 0:00:19]}  Rb2+ {[%clk 0:00:30]} 47. Rd2 {[%clk 0:00:19]}  Rxd2+ {[%clk 0:00:30]} 48. Kxd2 {[%clk 0:00:19]}  Rxf3 {[%clk 0:00:30]} 49. Ke2 {[%clk 0:00:19]}  Rf4 {[%clk 0:00:30]} 50. Ke3 {[%clk 0:00:19]}  e5 {[%clk 0:00:30]} 51. Rh7 {[%clk 0:00:17]}  Kg6 {[%clk 0:00:30]} 52. Rh8 {[%clk 0:00:17]}  f6 {[%clk 0:00:29]} 53. Re8 {[%clk 0:00:16]}  Kf5 {[%clk 0:00:30]} 54. Rh8 {[%clk 0:00:16]}  Re4+ {[%clk 0:00:29]} 55. Kf3 {[%clk 0:00:17]}  Rb4 {[%clk 0:00:29]} 56. Rh6 {[%clk 0:00:16]}  Rb3+ {[%clk 0:00:30]} 57. Kf2 {[%clk 0:00:16]}  e4 {[%clk 0:00:29]} 58. Rh8 {[%clk 0:00:15]}  Ke5 {[%clk 0:00:29]} 59. Re8+ {[%clk 0:00:15]}  Kf4 {[%clk 0:00:29]} 60. Rf8 {[%clk 0:00:15]}  Rb2+ {[%clk 0:00:29]} 61. Kf1 {[%clk 0:00:14]}  f5 {[%clk 0:00:29]} 62. Rc8 {[%clk 0:00:13]}  h3 {[%clk 0:00:29]} 63. Rh8 {[%clk 0:00:13]}  g4 {[%clk 0:00:28]} 64. Rc8 {[%clk 0:00:12]}  Kf3 {[%clk 0:00:27]} 65. Ke1 {[%clk 0:00:12]}  e3 {[%clk 0:00:26]} 66. Kd1 {[%clk 0:00:10]}  h2 {[%clk 0:00:25]} 67. Rh8 {[%clk 0:00:10]}  Rg2 {[%clk 0:00:24]} 68. Ke1 {[%clk 0:00:09]}  g3 {[%clk 0:00:23]} 69. Kd1 {[%clk 0:00:09]}  f4 {[%clk 0:00:23]} 70. Kc1 {[%clk 0:00:09]}  Ra2 {[%clk 0:00:22]} 71. Kb1 {[%clk 0:00:08]}  Rd2 {[%clk 0:00:23]} 72. Rh4 {[%clk 0:00:08]}  g2 {[%clk 0:00:22]} 73. Rh3+ {[%clk 0:00:08]}  Kg4 {[%clk 0:00:22]} 74. Rxh2 {[%clk 0:00:08]}  g1=R# {[%clk 0:00:20]} 0-1


[Site "https://www.chess.com"]

[Event "Titled Tuesday Blitz August 22 Late 2023"]
[White "Mr_November18"]
[Black "petr577"]
[WhiteElo "1969"]
[BlackElo "2379"]
[Result "0-1"]
[Round "5"]
[TimeControl "180+1"]
[Date "2023.08.22"]
[WhiteClock "0:00:23"]
[BlackClock "0:00:12"]
[Board "178"]

1. e4 {[%clk 0:03:00]}  c5 {[%clk 0:02:57]} 2. d4 {[%clk 0:03:00]}  cxd4 {[%clk 0:02:57]} 3. c3 {[%clk 0:03:00]}  d5 {[%clk 0:02:57]} 4. exd5 {[%clk 0:03:00]}  Qxd5 {[%clk 0:02:58]} 5. cxd4 {[%clk 0:03:01]}  Nc6 {[%clk 0:02:58]} 6. Nf3 {[%clk 0:03:00]}  Bg4 {[%clk 0:02:56]} 7. Be2 {[%clk 0:03:00]}  g6 {[%clk 0:02:56]} 8. h3 {[%clk 0:02:59]}  Bxf3 {[%clk 0:02:52]} 9. Bxf3 {[%clk 0:02:58]}  Qd7 {[%clk 0:02:51]} 10. Be3 {[%clk 0:02:57]}  Bg7 {[%clk 0:02:51]} 11. d5 {[%clk 0:02:55]}  Ne5 {[%clk 0:02:41]} 12. Be2 {[%clk 0:02:46]}  Nf6 {[%clk 0:02:39]} 13. Nc3 {[%clk 0:02:45]}  Rc8 {[%clk 0:02:35]} 14. Bb5 {[%clk 0:02:40]}  Nc6 {[%clk 0:02:28]} 15. dxc6 {[%clk 0:02:40]}  bxc6 {[%clk 0:02:29]} 16. Qxd7+ {[%clk 0:02:36]}  Nxd7 {[%clk 0:02:30]} 17. Ba4 {[%clk 0:02:35]}  O-O {[%clk 0:02:28]} 18. O-O {[%clk 0:02:34]}  Ne5 {[%clk 0:02:23]} 19. Rad1 {[%clk 0:02:28]}  Nc4 {[%clk 0:02:21]} 20. Bc1 {[%clk 0:02:19]}  e6 {[%clk 0:02:13]} 21. Bb3 {[%clk 0:02:18]}  Na5 {[%clk 0:02:08]} 22. Be3 {[%clk 0:02:10]}  a6 {[%clk 0:01:57]} 23. Ba4 {[%clk 0:02:09]}  Nc4 {[%clk 0:01:56]} 24. Bc5 {[%clk 0:02:02]}  Rfe8 {[%clk 0:01:54]} 25. Rd7 {[%clk 0:01:15]}  Nxb2 {[%clk 0:01:52]} 26. Bd4 {[%clk 0:01:14]}  e5 {[%clk 0:01:46]} 27. Bc5 {[%clk 0:01:08]}  e4 {[%clk 0:00:30]} 28. Bd4 {[%clk 0:01:07]}  Bxd4 {[%clk 0:00:29]} 29. Rxd4 {[%clk 0:01:06]}  f5 {[%clk 0:00:30]} 30. Bb3+ {[%clk 0:01:03]}  Kg7 {[%clk 0:00:29]} 31. Rd7+ {[%clk 0:01:01]}  Kh6 {[%clk 0:00:30]} 32. Rb1 {[%clk 0:00:55]}  Nd3 {[%clk 0:00:28]} 33. Bc2 {[%clk 0:00:53]}  Nc5 {[%clk 0:00:27]} 34. Ra7 {[%clk 0:00:51]}  Red8 {[%clk 0:00:23]} 35. Na4 {[%clk 0:00:48]}  Nd3 {[%clk 0:00:21]} 36. Rbb7 {[%clk 0:00:45]}  c5 {[%clk 0:00:16]} 37. Rxh7+ {[%clk 0:00:42]}  Kg5 {[%clk 0:00:16]} 38. g3 {[%clk 0:00:34]}  c4 {[%clk 0:00:13]} 39. h4+ {[%clk 0:00:32]}  Kg4 {[%clk 0:00:14]} 40. Kh2 {[%clk 0:00:29]}  Nxf2 {[%clk 0:00:13]} 41. Kg2 {[%clk 0:00:29]}  Rd2 {[%clk 0:00:12]} 42. Kf1 {[%clk 0:00:26]}  Nd3 {[%clk 0:00:12]} 43. Bxd3 {[%clk 0:00:25]}  cxd3 {[%clk 0:00:13]} 44. Rag7 {[%clk 0:00:23]}  Rc1# {[%clk 0:00:12]} 0-1


[Site "https://www.chess.com"]

[Event "Titled Tuesday Blitz August 22 Late 2023"]
[White "Gerbelli Neto, Eduardo"]
[Black "laskakid"]
[WhiteFideId "2103281"]
[WhiteElo "2298"]
[BlackElo "2130"]
[Result "1-0"]
[Round "5"]
[TimeControl "180+1"]
[Date "2023.08.22"]
[WhiteClock "0:00:13"]
[BlackClock "0:00:02"]
[Board "183"]

1. e4 {[%clk 0:02:57]}  e5 {[%clk 0:02:59]} 2. Nf3 {[%clk 0:02:56]}  Nc6 {[%clk 0:02:59]} 3. d4 {[%clk 0:02:56]}  exd4 {[%clk 0:02:59]} 4. Bc4 {[%clk 0:02:57]}  Nf6 {[%clk 0:02:58]} 5. O-O {[%clk 0:02:54]}  Nxe4 {[%clk 0:02:57]} 6. Re1 {[%clk 0:02:54]}  d5 {[%clk 0:02:57]} 7. Bxd5 {[%clk 0:02:50]}  Qxd5 {[%clk 0:02:57]} 8. Nc3 {[%clk 0:02:51]}  Qd7 {[%clk 0:02:57]} 9. Rxe4+ {[%clk 0:02:47]}  Be7 {[%clk 0:02:57]} 10. Nxd4 {[%clk 0:02:48]}  f5 {[%clk 0:02:52]} 11. Rf4 {[%clk 0:02:47]}  O-O {[%clk 0:02:51]} 12. Nxc6 {[%clk 0:02:43]}  Qxc6 {[%clk 0:02:50]} 13. Nd5 {[%clk 0:02:41]}  Bd6 {[%clk 0:02:43]} 14. Rd4 {[%clk 0:02:41]}  Be6 {[%clk 0:02:25]} 15. Bf4 {[%clk 0:02:28]}  Bxd5 {[%clk 0:02:04]} 16. Bxd6 {[%clk 0:02:27]}  Bxg2 {[%clk 0:02:04]} 17. Bxf8 {[%clk 0:02:08]}  Bf3 {[%clk 0:02:01]} 18. Qd3 {[%clk 0:01:57]}  Qg6+ {[%clk 0:01:50]} 19. Kf1 {[%clk 0:01:57]}  Qg2+ {[%clk 0:01:47]} 20. Ke1 {[%clk 0:01:57]}  Re8+ {[%clk 0:01:43]} 21. Kd2 {[%clk 0:01:58]}  Qxf2+ {[%clk 0:01:36]} 22. Kc3 {[%clk 0:01:58]}  Re3 {[%clk 0:01:31]} 23. Bc5 {[%clk 0:01:37]}  Rxd3+ {[%clk 0:01:18]} 24. cxd3 {[%clk 0:01:37]}  Qxh2 {[%clk 0:01:08]} 25. Rg1 {[%clk 0:01:36]}  Qe5 {[%clk 0:00:43]} 26. Kc4 {[%clk 0:01:34]}  b5+ {[%clk 0:00:28]} 27. Kxb5 {[%clk 0:01:16]}  c6+ {[%clk 0:00:28]} 28. Kb4 {[%clk 0:01:15]}  a5+ {[%clk 0:00:25]} 29. Kc4 {[%clk 0:01:02]}  Bd5+ {[%clk 0:00:24]} 30. Kc3 {[%clk 0:01:00]}  Be6 {[%clk 0:00:20]} 31. b4 {[%clk 0:00:56]}  axb4+ {[%clk 0:00:19]} 32. Kxb4 {[%clk 0:00:57]}  Bd5 {[%clk 0:00:17]} 33. a4 {[%clk 0:00:52]}  f4 {[%clk 0:00:16]} 34. a5 {[%clk 0:00:38]}  Qb8+ {[%clk 0:00:15]} 35. Bb6 {[%clk 0:00:36]}  f3 {[%clk 0:00:13]} 36. Rdg4 {[%clk 0:00:27]}  Qd6+ {[%clk 0:00:12]} 37. Kc3 {[%clk 0:00:26]}  g6 {[%clk 0:00:12]} 38. Re1 {[%clk 0:00:20]}  Qf6+ {[%clk 0:00:11]} 39. Kd2 {[%clk 0:00:19]}  f2 {[%clk 0:00:11]} 40. Rf1 {[%clk 0:00:18]}  Qf3 {[%clk 0:00:10]} 41. Rb4 {[%clk 0:00:15]}  c5 {[%clk 0:00:08]} 42. Bxc5 {[%clk 0:00:14]}  Qg2 {[%clk 0:00:07]} 43. Rxf2 {[%clk 0:00:14]}  Qg5+ {[%clk 0:00:07]} 44. Be3 {[%clk 0:00:12]}  Qg4 {[%clk 0:00:06]} 45. Rxg4 {[%clk 0:00:12]}  Kg7 {[%clk 0:00:06]} 46. Rd4 {[%clk 0:00:12]}  Bf7 {[%clk 0:00:02]} 47. Rd7 {[%clk 0:00:13]} 1-0


[Site "https://www.chess.com"]

[Event "Titled Tuesday Blitz August 22 Late 2023"]
[White "Matute Escobar, Roxanny"]
[Black "Haitin, Ilja"]
[WhiteFideId "3926028"]
[BlackFideId "4501764"]
[WhiteElo "2198"]
[BlackElo "2369"]
[Result "0-1"]
[Round "5"]
[TimeControl "180+1"]
[Date "2023.08.22"]
[WhiteClock "0:00:13"]
[BlackClock "0:01:08"]
[Board "189"]

1. e4 {[%clk 0:02:59]}  e6 {[%clk 0:02:59]} 2. d4 {[%clk 0:02:59]}  d5 {[%clk 0:03:00]} 3. e5 {[%clk 0:03:00]}  c5 {[%clk 0:02:58]} 4. c3 {[%clk 0:03:00]}  Qb6 {[%clk 0:02:58]} 5. Nf3 {[%clk 0:03:00]}  Bd7 {[%clk 0:02:58]} 6. Be2 {[%clk 0:02:58]}  Bb5 {[%clk 0:02:59]} 7. O-O {[%clk 0:02:56]}  Bxe2 {[%clk 0:02:58]} 8. Qxe2 {[%clk 0:02:57]}  Nc6 {[%clk 0:02:58]} 9. dxc5 {[%clk 0:02:57]}  Bxc5 {[%clk 0:02:57]} 10. b4 {[%clk 0:02:57]}  Bf8 {[%clk 0:02:52]} 11. Nbd2 {[%clk 0:02:52]}  Nge7 {[%clk 0:02:49]} 12. Nb3 {[%clk 0:02:45]}  h5 {[%clk 0:02:15]} 13. h4 {[%clk 0:01:49]}  Nf5 {[%clk 0:02:12]} 14. Bf4 {[%clk 0:01:27]}  Be7 {[%clk 0:02:10]} 15. g3 {[%clk 0:01:21]}  g6 {[%clk 0:02:10]} 16. a3 {[%clk 0:01:16]}  O-O {[%clk 0:02:07]} 17. Kg2 {[%clk 0:01:10]}  a6 {[%clk 0:02:03]} 18. Rac1 {[%clk 0:01:09]}  Qb5 {[%clk 0:02:01]} 19. c4 {[%clk 0:00:57]}  dxc4 {[%clk 0:02:00]} 20. Rxc4 {[%clk 0:00:57]}  Rad8 {[%clk 0:01:48]} 21. Rfc1 {[%clk 0:00:55]}  Rd5 {[%clk 0:01:37]} 22. Qe4 {[%clk 0:00:45]}  Rfd8 {[%clk 0:01:34]} 23. Nc5 {[%clk 0:00:46]}  Bxc5 {[%clk 0:01:29]} 24. Rxc5 {[%clk 0:00:45]}  Rxc5 {[%clk 0:01:27]} 25. Rxc5 {[%clk 0:00:46]}  Qd3 {[%clk 0:01:27]} 26. Qxd3 {[%clk 0:00:44]}  Rxd3 {[%clk 0:01:28]} 27. b5 {[%clk 0:00:41]}  axb5 {[%clk 0:01:20]} 28. Rxb5 {[%clk 0:00:42]}  Rxf3 {[%clk 0:01:18]} 29. Rxb7 {[%clk 0:00:39]}  Rxa3 {[%clk 0:01:14]} 30. Rc7 {[%clk 0:00:38]}  Nce7 {[%clk 0:01:11]} 31. Bg5 {[%clk 0:00:38]}  Nd5 {[%clk 0:01:10]} 32. Rc8+ {[%clk 0:00:33]}  Kg7 {[%clk 0:01:09]} 33. Bc1 {[%clk 0:00:17]}  Rc3 {[%clk 0:01:07]} 34. Rxc3 {[%clk 0:00:13]}  Nxc3 {[%clk 0:01:08]} 0-1


[Site "https://www.chess.com"]

[Event "Titled Tuesday Blitz August 22 Late 2023"]
[White "Bongo Akanga Ndjila, Barthelemy"]
[Black "kiwibobo"]
[WhiteFideId "10609431"]
[WhiteElo "2038"]
[BlackElo "2307"]
[Result "0-1"]
[Round "5"]
[TimeControl "180+1"]
[Date "2023.08.22"]
[WhiteClock "0:00:04"]
[BlackClock "0:01:52"]
[Board "192"]

1. d4 {[%clk 0:01:19]}  Nf6 {[%clk 0:02:59]} 2. c4 {[%clk 0:01:17]}  g6 {[%clk 0:02:58]} 3. Nf3 {[%clk 0:01:15]}  Bg7 {[%clk 0:02:58]} 4. e3 {[%clk 0:01:16]}  O-O {[%clk 0:02:58]} 5. Bd3 {[%clk 0:01:15]}  c5 {[%clk 0:02:51]} 6. O-O {[%clk 0:01:13]}  cxd4 {[%clk 0:02:50]} 7. exd4 {[%clk 0:01:12]}  d5 {[%clk 0:02:50]} 8. b3 {[%clk 0:01:10]}  Nc6 {[%clk 0:02:46]} 9. h3 {[%clk 0:01:07]}  dxc4 {[%clk 0:02:43]} 10. Bxc4 {[%clk 0:01:06]}  b6 {[%clk 0:02:39]} 11. Bb2 {[%clk 0:01:06]}  Bb7 {[%clk 0:02:36]} 12. Nbd2 {[%clk 0:01:06]}  Na5 {[%clk 0:02:33]} 13. Bd3 {[%clk 0:01:03]}  Nd5 {[%clk 0:02:32]} 14. Re1 {[%clk 0:00:57]}  e6 {[%clk 0:02:30]} 15. Rc1 {[%clk 0:00:53]}  Rc8 {[%clk 0:02:30]} 16. Rxc8 {[%clk 0:00:43]}  Qxc8 {[%clk 0:02:30]} 17. Qb1 {[%clk 0:00:43]}  Qd7 {[%clk 0:02:14]} 18. Rc1 {[%clk 0:00:41]}  Rc8 {[%clk 0:02:14]} 19. Ne5 {[%clk 0:00:31]}  Bxe5 {[%clk 0:02:07]} 20. dxe5 {[%clk 0:00:31]}  Nf4 {[%clk 0:02:00]} 21. Rxc8+ {[%clk 0:00:29]}  Bxc8 {[%clk 0:01:59]} 22. Ne4 {[%clk 0:00:13]}  Qxd3 {[%clk 0:01:55]} 23. Nf6+ {[%clk 0:00:12]}  Kg7 {[%clk 0:01:52]} 24. Qc1 {[%clk 0:00:04]}  Ne2+ {[%clk 0:01:52]} 0-1


[Site "https://www.chess.com"]

[Event "Titled Tuesday Blitz August 22 Late 2023"]
[White "Nakamura, Hikaru"]
[Black "Xiong, Jeffery"]
[WhiteFideId "2016192"]
[BlackFideId "2047640"]
[WhiteElo "3229"]
[BlackElo "3009"]
[Result "1-0"]
[Round "6"]
[TimeControl "180+1"]
[Date "2023.08.22"]
[WhiteClock "0:00:41"]
[BlackClock "0:00:04"]
[Board "1"]

1. Nf3 {[%clk 0:03:00]}  d5 {[%clk 0:02:58]} 2. b3 {[%clk 0:02:58]}  Bf5 {[%clk 0:02:55]} 3. Ba3 {[%clk 0:02:58]}  Nf6 {[%clk 0:02:43]} 4. e3 {[%clk 0:02:58]}  e6 {[%clk 0:02:33]} 5. Bxf8 {[%clk 0:02:56]}  Kxf8 {[%clk 0:02:34]} 6. c4 {[%clk 0:02:56]}  Nbd7 {[%clk 0:02:33]} 7. Nc3 {[%clk 0:02:51]}  c6 {[%clk 0:02:30]} 8. d3 {[%clk 0:02:48]}  h6 {[%clk 0:02:28]} 9. Be2 {[%clk 0:02:48]}  Kg8 {[%clk 0:02:06]} 10. O-O {[%clk 0:02:48]}  Kh7 {[%clk 0:02:07]} 11. Nh4 {[%clk 0:02:42]}  Re8 {[%clk 0:02:04]} 12. Rc1 {[%clk 0:02:34]}  Kg8 {[%clk 0:02:02]} 13. cxd5 {[%clk 0:02:31]}  Nxd5 {[%clk 0:01:57]} 14. Nxf5 {[%clk 0:02:30]}  exf5 {[%clk 0:01:55]} 15. Nxd5 {[%clk 0:02:30]}  cxd5 {[%clk 0:01:56]} 16. Qd2 {[%clk 0:02:21]}  Nf6 {[%clk 0:01:52]} 17. Bf3 {[%clk 0:02:18]}  d4 {[%clk 0:01:10]} 18. exd4 {[%clk 0:01:55]}  Qxd4 {[%clk 0:01:10]} 19. Bxb7 {[%clk 0:01:55]}  Rad8 {[%clk 0:01:09]} 20. Rfd1 {[%clk 0:01:56]}  Ne4 {[%clk 0:00:57]} 21. Qc2 {[%clk 0:01:34]}  Nd6 {[%clk 0:00:55]} 22. Bf3 {[%clk 0:01:21]}  Rc8 {[%clk 0:00:54]} 23. Qd2 {[%clk 0:01:19]}  g6 {[%clk 0:00:41]} 24. Qxh6 {[%clk 0:01:15]}  Nb5 {[%clk 0:00:38]} 25. Rxc8 {[%clk 0:01:06]}  Rxc8 {[%clk 0:00:38]} 26. h4 {[%clk 0:01:02]}  Rc2 {[%clk 0:00:35]} 27. Qe3 {[%clk 0:00:52]}  Qxe3 {[%clk 0:00:30]} 28. fxe3 {[%clk 0:00:52]}  Nc3 {[%clk 0:00:23]} 29. Ra1 {[%clk 0:00:52]}  Nxa2 {[%clk 0:00:23]} 30. Bd5 {[%clk 0:00:48]}  Nc1 {[%clk 0:00:15]} 31. Rxa7 {[%clk 0:00:41]}  Nxd3 {[%clk 0:00:14]} 32. Bxf7+ {[%clk 0:00:41]}  Kh8 {[%clk 0:00:11]} 33. Bxg6 {[%clk 0:00:41]}  Ne1 {[%clk 0:00:04]} 34. Bxf5 {[%clk 0:00:41]} 1-0


[Site "https://www.chess.com"]

[Event "Titled Tuesday Blitz August 22 Late 2023"]
[White "Van Foreest, Jorden"]
[Black "Sarana, Alexey"]
[WhiteFideId "1039784"]
[BlackFideId "24133795"]
[WhiteElo "3007"]
[BlackElo "3079"]
[Result "0-1"]
[Round "6"]
[TimeControl "180+1"]
[Date "2023.08.22"]
[WhiteClock "0:00:18"]
[BlackClock "0:00:07"]
[Board "2"]

1. Nf3 {[%clk 0:03:00]}  d5 {[%clk 0:03:00]} 2. b3 {[%clk 0:03:01]}  c5 {[%clk 0:03:00]} 3. e3 {[%clk 0:03:00]}  Nc6 {[%clk 0:03:00]} 4. Bb2 {[%clk 0:03:01]}  a6 {[%clk 0:03:00]} 5. d4 {[%clk 0:02:57]}  Nf6 {[%clk 0:03:00]} 6. Be2 {[%clk 0:02:54]}  Bg4 {[%clk 0:02:59]} 7. O-O {[%clk 0:02:54]}  e6 {[%clk 0:03:00]} 8. Nbd2 {[%clk 0:02:52]}  Bd6 {[%clk 0:02:54]} 9. dxc5 {[%clk 0:02:53]}  Bxc5 {[%clk 0:02:54]} 10. a3 {[%clk 0:02:53]}  O-O {[%clk 0:02:53]} 11. b4 {[%clk 0:02:54]}  Ba7 {[%clk 0:02:52]} 12. c4 {[%clk 0:02:54]}  Qe7 {[%clk 0:02:45]} 13. h3 {[%clk 0:02:54]}  Bh5 {[%clk 0:02:44]} 14. Rc1 {[%clk 0:02:43]}  Rfd8 {[%clk 0:02:43]} 15. Ne5 {[%clk 0:02:43]}  Nxe5 {[%clk 0:02:36]} 16. Bxe5 {[%clk 0:02:44]}  Bxe2 {[%clk 0:02:02]} 17. Qxe2 {[%clk 0:02:45]}  dxc4 {[%clk 0:02:03]} 18. Nxc4 {[%clk 0:02:39]}  Rac8 {[%clk 0:02:02]} 19. Qf3 {[%clk 0:02:25]}  Nd5 {[%clk 0:01:57]} 20. Nd6 {[%clk 0:02:18]}  Rxc1 {[%clk 0:01:53]} 21. Rxc1 {[%clk 0:02:19]}  f6 {[%clk 0:01:49]} 22. Nc8 {[%clk 0:02:19]}  Qd7 {[%clk 0:01:45]} 23. Nxa7 {[%clk 0:02:10]}  fxe5 {[%clk 0:01:45]} 24. Qe4 {[%clk 0:01:55]}  b5 {[%clk 0:01:14]} 25. Nc6 {[%clk 0:01:55]}  Rc8 {[%clk 0:01:14]} 26. Qc2 {[%clk 0:01:56]}  e4 {[%clk 0:01:04]} 27. Qc5 {[%clk 0:01:45]}  h6 {[%clk 0:01:02]} 28. f3 {[%clk 0:01:33]}  Kh8 {[%clk 0:00:53]} 29. Rc2 {[%clk 0:01:16]}  Ne7 {[%clk 0:00:38]} 30. Qd4 {[%clk 0:01:16]}  Qe8 {[%clk 0:00:31]} 31. Nxe7 {[%clk 0:00:58]}  Rxc2 {[%clk 0:00:31]} 32. Qd6 {[%clk 0:00:59]}  exf3 {[%clk 0:00:28]} 33. gxf3 {[%clk 0:00:59]}  Rc1+ {[%clk 0:00:21]} 34. Kf2 {[%clk 0:00:53]}  Qf7 {[%clk 0:00:09]} 35. Qd2 {[%clk 0:00:49]}  Rh1 {[%clk 0:00:06]} 36. Kg2 {[%clk 0:00:48]}  Ra1 {[%clk 0:00:06]} 37. Qd8+ {[%clk 0:00:42]}  Kh7 {[%clk 0:00:07]} 38. Qd3+ {[%clk 0:00:42]}  g6 {[%clk 0:00:06]} 39. Nc6 {[%clk 0:00:43]}  Ra2+ {[%clk 0:00:06]} 40. Kg1 {[%clk 0:00:18]}  Qc7 {[%clk 0:00:07]} 0-1


[Site "https://www.chess.com"]

[Event "Titled Tuesday Blitz August 22 Late 2023"]
[White "Vasquez Schroeder, Rodrigo"]
[Black "Sadhwani, Raunak"]
[WhiteFideId "3400042"]
[BlackFideId "35093487"]
[WhiteElo "2981"]
[BlackElo "3029"]
[Result "0-1"]
[Round "6"]
[TimeControl "180+1"]
[Date "2023.08.22"]
[WhiteClock "0:00:10"]
[BlackClock "0:00:23"]
[Board "3"]

1. e4 {[%clk 0:03:00]}  e5 {[%clk 0:02:47]} 2. Nf3 {[%clk 0:03:00]}  Nc6 {[%clk 0:02:47]} 3. Bb5 {[%clk 0:03:00]}  Nge7 {[%clk 0:02:46]} 4. O-O {[%clk 0:02:58]}  Ng6 {[%clk 0:02:46]} 5. c3 {[%clk 0:02:56]}  a6 {[%clk 0:02:46]} 6. Ba4 {[%clk 0:02:54]}  d5 {[%clk 0:02:46]} 7. d3 {[%clk 0:02:51]}  Be7 {[%clk 0:02:44]} 8. h3 {[%clk 0:02:43]}  O-O {[%clk 0:02:44]} 9. Qe2 {[%clk 0:02:43]}  b5 {[%clk 0:02:34]} 10. Bb3 {[%clk 0:02:42]}  Be6 {[%clk 0:02:34]} 11. Re1 {[%clk 0:02:39]}  Qd7 {[%clk 0:02:33]} 12. Kh2 {[%clk 0:02:31]}  Rfe8 {[%clk 0:02:26]} 13. Ng5 {[%clk 0:02:27]}  Bxg5 {[%clk 0:02:24]} 14. Bxg5 {[%clk 0:02:28]}  d4 {[%clk 0:02:25]} 15. Bc2 {[%clk 0:02:12]}  h6 {[%clk 0:02:18]} 16. Bc1 {[%clk 0:02:11]}  Rad8 {[%clk 0:02:17]} 17. Rd1 {[%clk 0:01:57]}  Qd6 {[%clk 0:02:10]} 18. Kh1 {[%clk 0:01:52]}  a5 {[%clk 0:01:45]} 19. a4 {[%clk 0:01:46]}  dxc3 {[%clk 0:01:33]} 20. bxc3 {[%clk 0:01:45]}  b4 {[%clk 0:01:34]} 21. cxb4 {[%clk 0:01:28]}  axb4 {[%clk 0:01:29]} 22. Re1 {[%clk 0:00:54]}  Nd4 {[%clk 0:01:16]} 23. Qd2 {[%clk 0:00:53]}  Nf4 {[%clk 0:00:51]} 24. Bd1 {[%clk 0:00:50]}  Qa6 {[%clk 0:00:42]} 25. Re3 {[%clk 0:00:47]}  c5 {[%clk 0:00:41]} 26. g3 {[%clk 0:00:43]}  Nxh3 {[%clk 0:00:41]} 27. Kg2 {[%clk 0:00:42]}  Ng5 {[%clk 0:00:39]} 28. f4 {[%clk 0:00:41]}  Nxe4 {[%clk 0:00:27]} 29. Rxe4 {[%clk 0:00:28]}  Bd5 {[%clk 0:00:27]} 30. Kh3 {[%clk 0:00:19]}  Bxe4 {[%clk 0:00:25]} 31. dxe4 {[%clk 0:00:19]}  Qf1+ {[%clk 0:00:26]} 32. Kg4 {[%clk 0:00:18]}  h5+ {[%clk 0:00:24]} 33. Kg5 {[%clk 0:00:10]}  Ne6+ {[%clk 0:00:23]} 0-1


[Site "https://www.chess.com"]